lending/lending_fUSD_20250425
["ID","MTS","AMOUNT","RATE_DAILY","PERIOD"]
[358991581,1745611620697,-616.0,0.00054467,30]
[358991582,1745611620732,-616.0,0.00054467,30]
[358991583,1745611620769,-616.0,0.00054467,30]
[358991584,1745611620806,-633.87743463,0.00054467,30]
[358991585,1745611620842,-500.0,0.00054467,30]
[358991586,1745611620877,-500.0,0.00054467,30]
[358991587,1745611620912,-500.0,0.00054467,30]
[358991588,1745611620949,-500.0,0.00054467,30]
[358991589,1745611620986,-500.0,0.00054467,30]
[358991590,1745611621022,-500.0,0.00054467,30]
[358991591,1745611621059,-500.0,0.00054467,30]
[358991592,1745611621096,-500.0,0.00054467,30]
[358991593,1745611621134,-500.0,0.00054467,30]
[358991594,1745611621172,-500.0,0.00054467,30]
[358991595,1745611621209,-500.0,0.00054467,30]
[358991596,1745611621247,-500.0,0.00054467,30]
[358991597,1745611621282,-500.0,0.00054467,30]
[358991598,1745611621319,-209.69474426,0.00054467,30]
[358991599,1745611621355,-150.0,0.00054467,30]
[358991600,1745611621392,-150.0,0.00054467,30]
[358991601,1745611621429,-150.0,0.00054467,30]
[358991602,1745611621467,-199.8929094,0.00054467,30]
[358991603,1745611621504,-150.0,0.00054467,30]
[358991604,1745611621543,-150.0,0.00054467,30]
[358991605,1745611621581,-200.74375446,0.00054467,30]
[358991606,1745611621619,-153.45586701,0.00054467,30]
[358991607,1745611621657,-217.00446543,0.00054467,30]
[358991608,1745611621694,-500.0,0.00054467,30]
[358991609,1745611622017,-500.0,0.00054467,30]
[358991610,1745611622058,-232.80351939,0.00054467,30]
[358991611,1745611622100,-500.0,0.00054467,30]
[358991612,1745611622142,-500.0,0.00054467,30]
[358991613,1745611622182,-500.0,0.00054467,30]
[358991614,1745611622223,-500.0,0.00054467,30]
[358991615,1745611622263,-290.00036646,0.00054467,30]
[358991616,1745611622301,-156.42604552,0.00054467,30]
[358991617,1745611622343,-150.72674899,0.00054467,30]
[358991618,1745611622383,-150.0,0.00054467,30]
[358991619,1745611622425,-150.0,0.00054467,30]
[358991620,1745611622464,-200.7961999,0.00054467,30]
[358991621,1745611622502,-151.08624027,0.00054467,30]
[358991622,1745611622541,-500.0,0.00054467,30]
[358991623,1745611622580,-500.65368418,0.00054467,30]
[358991624,1745611622618,-500.0,0.00054467,30]
[358991625,1745611622657,-500.0,0.00054467,30]
[358991626,1745611622695,-500.0,0.00054467,30]
[358991627,1745611622731,-500.0,0.00054467,30]
[358991628,1745611622768,-500.0,0.00054467,30]
[358991629,1745611622805,-299.54842546,0.00054467,30]
[358991630,1745611622843,-500.0,0.00054467,30]
[358991631,1745611622880,-500.0,0.00054467,30]
[358991632,1745611622918,-500.0,0.00054467,30]
[358991633,1745611622955,-500.0,0.00054467,30]
[358991634,1745611622992,-500.0,0.00054467,30]
[358991635,1745611623041,-500.0,0.00054467,30]
[358991636,1745611623085,-500.0,0.00054467,30]
[358991637,1745611623129,-155.39034085,0.00054467,30]
[358991638,1745611623173,-500.0,0.00054467,30]
[358991639,1745611623217,-500.0,0.00054467,30]
[358991640,1745611623261,-500.0,0.00054467,30]
[358991641,1745611623304,-500.0,0.00054467,30]
[358991642,1745611623348,-500.0,0.00054467,30]
[358991643,1745611623390,-500.0,0.00054467,30]
[358991644,1745611623434,-408.0,0.00054467,30]
[358991645,1745611623478,-500.0,0.00054467,30]
[358991646,1745611623522,-500.0,0.00054467,30]
[358991647,1745611623563,-500.0,0.00054467,30]
[358991648,1745611623607,-500.0,0.00054467,30]
[358991649,1745611623649,-500.0,0.00054467,30]
[358991650,1745611623693,-500.0,0.00054467,30]
[358991651,1745611623734,-500.0,0.00054467,30]
[358991652,1745611623777,-500.0,0.00054467,30]
[358991653,1745611623819,-500.0,0.00054467,30]
[358991654,1745611623860,-500.0,0.00054467,30]
[358991655,1745611623902,-500.0,0.00054467,30]
[358991656,1745611623943,-500.0,0.00054467,30]
[358991657,1745611623986,-500.0,0.00054467,30]
[358991658,1745611624029,-500.0,0.00054467,30]
[358991659,1745611624074,-470.74570451,0.00054467,30]
[358991660,1745611624118,-500.0,0.00054467,30]
[358991661,1745611624162,-500.0,0.00054467,30]
[358991662,1745611624206,-150.37497669,0.00054467,30]
[358991663,1745611624251,-5000.0,0.000545,120]
[358991664,1745611624293,-5000.0,0.000545,120]
[358991665,1745611624338,-1000000.0,0.000545,120]
[358991666,1745611624379,-802.61,0.0005452,120]
[358991667,1745611624420,-500.0,0.0005452,34]
[358991668,1745611624462,-1000.0,0.0005452,120]
[358991669,1745611624503,-528.3708351,0.0005455,60]
[358991670,1745611624545,-799.54,0.0005455,30]
[358991671,1745611624585,-454.99,0.0005455,30]
[358991672,1745611624625,-909.98,0.00054551,30]
[358991673,1745611624665,-799.54,0.00054551,30]
[358991674,1745611624706,-799.54,0.00054551,30]
[358991675,1745611624752,-460.2524044,0.00054567,31]
[358991676,1745611624794,-5816.34154332,0.00054598,120]
[358991677,1745611624835,-5816.34154332,0.00054598,120]
[358991678,1745611624878,-5816.34154332,0.00054598,120]
[358991679,1745611624921,-756.66327145,0.000547,60]
[358991680,1745611624963,-10000.0,0.000547,120]
[358991681,1745611625007,-204.26,0.0005471,30]
[358991682,1745611625051,-1000.0,0.00054767,31]
[358991683,1745611625091,-1000.0,0.00054767,31]
[358991684,1745611625131,-1000.0,0.00054767,31]
[358991685,1745611625175,-1000.0,0.00054767,31]
[358991686,1745611625216,-225.55173978,0.00054767,31]
[358991687,1745611625259,-200.0,0.00054767,30]
[358991688,1745611625303,-207.4,0.00054767,30]
[358991689,1745611625347,-215.0738,0.00054767,30]
[358991690,1745611625388,-223.0315306,0.00054767,30]
[358991691,1745611625430,-231.28369723,0.00054767,30]
[358991692,1745611625472,-239.84119403,0.00054767,30]
[358991693,1745611625514,-248.71531821,0.00054767,30]
[358991694,1745611625555,-257.91778498,0.00054767,30]
[358991695,1745611625597,-267.46074303,0.00054767,30]
[358991696,1745611625638,-277.35679052,0.00054767,30]
[358991697,1745611625679,-287.61899177,0.00054767,30]
[358991698,1745611625721,-298.26089446,0.00054767,30]
[358991699,1745611625761,-309.29654756,0.00054767,30]
[358991700,1745611625801,-320.74051982,0.00054767,30]
[358991701,1745611625841,-332.60791905,0.00054767,30]
[358991702,1745611625881,-344.91441206,0.00054767,30]
[358991703,1745611625922,-357.6762453,0.00054767,30]
[358991704,1745611625964,-370.91026638,0.00054767,30]
[358991705,1745611626006,-384.63394623,0.00054767,30]
[358991706,1745611626050,-398.86540225,0.00054767,30]
[358991707,1745611626659,150.0,0.00053068,120]
[358991708,1745611626737,150.0,0.00053125,120]
[358991709,1745611626860,150.0,0.0005315,120]
[358991710,1745611626931,153.0,0.00049589,60]
[358991711,1745611626973,150.0,0.00053151,120]
[358991712,1745611627032,153.0,0.00049589,60]
[358991713,1745611627093,150.0,0.00053181,120]
[358991714,1745611627140,153.0,0.00049589,60]
[358991715,1745611627242,153.0,0.00049589,60]
[358991716,1745611627299,153.0,0.00049589,60]
[358991717,1745611627343,150.0,0.00053205,90]
[358991718,1745611627399,153.0,0.00049589,60]
[358991719,1745611627454,150.0,0.0005325,120]
[358991720,1745611627519,153.0,0.00049589,60]
[358991721,1745611627611,153.0,0.00049589,60]
[358991722,1745611628682,200.0,0.00054467,30]
[358991723,1745611628726,9081.23137303,0.0005072,120]
[358991724,1745611628830,10129.63734658,0.000525,120]
[358991725,1745611628878,207.4,0.00054467,30]
[358991726,1745611628942,215.0738,0.00054467,30]
[358991727,1745611629191,223.0315306,0.00054467,30]
[358991728,1745611629833,231.28369723,0.00054467,30]
[358991729,1745611630461,239.84119403,0.00054467,30]
[358991730,1745611630942,150.0,0.00054766,31]
[358991731,1745611631111,248.71531821,0.00054467,30]
[358991732,1745611632012,257.91778498,0.00054467,30]
[358991733,1745611632372,267.46074303,0.00054467,30]
[358991734,1745611633012,277.35679052,0.00054467,30]
[358991735,1745611633076,150.0,0.00054766,31]
[358991736,1745611633654,287.61899177,0.00054467,30]
[358991737,1745611634282,298.26089446,0.00054467,30]
[358991738,1745611634939,309.29654756,0.00054467,30]
[358991739,1745611635581,320.74051982,0.00054467,30]
[358991740,1745611637094,332.60791905,0.00054467,30]
[358991741,1745611637391,344.91441206,0.00054467,30]
[358991742,1745611638025,357.6762453,0.00054467,30]
[358991743,1745611638684,370.91026638,0.00054467,30]
[358991744,1745611639322,384.63394623,0.00054467,30]
[358991745,1745611640483,398.86540225,0.00054467,30]
[358991785,1745611838088,-222.144534,0.00025799,2]
[358991786,1745611838099,-136.28889338,0.00025929,7]
[358991787,1745611838109,-74.95318427,0.00026034,2]
[358991788,1745611838122,-925.04681573,0.00026034,2]
[358991789,1745611838134,-1312.28,0.00026146,2]
[358991790,1745611838144,-1604.91,0.00026206,2]
[358991791,1745611838154,-200.0,0.00026307,2]
[358991792,1745611838164,-318.82,0.00026606,2]
[358991793,1745611838175,-165.99,0.00026606,2]
[358991794,1745611838184,-597.73,0.00026648,2]
[358991795,1745611838194,-898.12108993,0.0002668,3]
[358991796,1745611838204,-799.54,0.00026723,2]
[358991797,1745611838214,-15340.32285791,0.0002678,2]
[358991798,1745611838246,-8559.67714209,0.0002678,2]
[358991799,1745611838256,-799.54,0.00026823,2]
[358991800,1745611838266,-250.0,0.00026826,2]
[358991801,1745611838276,-200.0,0.00026874,2]
[358991802,1745611838286,-2392.41,0.00026878,2]
[358991803,1745611838302,-1877.93293719,0.000269,7]
[358991804,1745611838312,-799.54,0.00026923,2]
[358991805,1745611838322,-1821.349,0.00027023,15]
[358991806,1745611838333,-799.54,0.00027023,2]
[358991807,1745611838343,-170.27104194,0.00027023,15]
[358991808,1745611838353,-161.85,0.00027123,2]
[358991810,1745611838364,-150.0,0.00027123,2]
[358991812,1745611838373,-351.29,0.00027123,2]
[358991814,1745611838384,-351.29,0.00027123,2]
[358991816,1745611838394,-150.0,0.00027123,2]
[358991818,1745611838404,-161.85,0.00027123,2]
[358991820,1745611838414,-351.29,0.00027123,2]
[358991822,1745611838423,-150.0,0.00027123,2]
[358991824,1745611838433,-351.29,0.00027123,2]
[358991826,1745611838443,-161.85,0.00027123,2]
[358991828,1745611838453,-150.0,0.00027123,2]
[358991830,1745611838463,-161.85,0.00027123,2]
[358991832,1745611838472,-351.29,0.00027123,2]
[358991834,1745611838482,-161.05,0.00027123,2]
[358991837,1745611838492,-351.29,0.00027123,2]
[358991838,1745611838502,-351.29,0.00027134,2]
[358991840,1745611838511,-150.0,0.00027134,2]
[358991843,1745611838521,-161.85,0.00027134,2]
[358991845,1745611838531,-1096.74488071,0.00027287,2]
[358991847,1745611838540,-166.20484489,0.00027287,2]
[358991849,1745611838551,-151.43622266,0.00027297,2]
[358991851,1745611838561,-500.0,0.00027373,2]
[358991853,1745611838570,-500.0,0.00027373,2]
[358991855,1745611838580,-500.0,0.00027373,2]
[358991857,1745611838590,-1877.93293715,0.00027383,7]
[358991858,1745611838600,-434.04082711,0.00027386,2]
[358991861,1745611838609,-383556.985057,0.00027387,2]
[358991863,1745611838619,-30056.04691309,0.00027387,2]
[358991869,1745611838672,-1111.59726643,0.00027387,2]
[358991903,1745611840199,-52129.39222149,0.00027387,2]
[358991921,1745611843182,-165114.39397499,0.00027387,2]
[358991922,1745611843193,-600.0,0.00027397,2]
[358991923,1745611843204,-500.0,0.00027397,2]
[358991924,1745611843214,-535.6247154,0.00027397,2]
[358991925,1745611843223,-500.0,0.00027397,2]
[358991926,1745611843233,-605.81017872,0.00027397,2]
[358991927,1745611843243,-151.0,0.00027397,7]
[358991928,1745611843253,-152.854527,0.00027397,7]
[358991929,1745611843264,-152.936643,0.00027397,7]
[358991930,1745611843286,-500.0,0.00027397,2]
[358991931,1745611843296,-500.0,0.00027397,2]
[358991932,1745611843307,-500.0,0.00027397,2]
[358991933,1745611843317,-151.0,0.00027397,7]
[358991934,1745611843327,-152.949826,0.00027397,7]
[358991935,1745611843337,-500.71521247,0.00027397,2]
[358991936,1745611843347,-500.0,0.00027397,2]
[358991937,1745611843358,-500.0,0.00027397,2]
[358991938,1745611843368,-643.47836793,0.00027397,2]
[358991939,1745611843377,-500.0,0.00027397,2]
[358991940,1745611843615,-521.72,0.00027397,2]
[358991941,1745611843625,-500.0,0.00027397,2]
[358991942,1745611843636,-500.0,0.00027397,2]
[358991943,1745611843651,-500.0,0.00027397,2]
[358991944,1745611843662,-500.0,0.00027397,2]
[358991945,1745611843671,-503.62,0.00027397,2]
[358991947,1745611843682,-500.0,0.00027397,2]
[358991949,1745611843691,-581.81,0.00027397,2]
[358991950,1745611843701,-617.41,0.00027397,2]
[358991951,1745611843711,-500.0,0.00027397,2]
[358991952,1745611843721,-500.0,0.00027397,2]
[358991953,1745611843731,-500.0,0.00027397,2]
[358991954,1745611843742,-500.0,0.00027397,2]
[358991955,1745611843751,-500.0,0.00027397,2]
[358991956,1745611843761,-500.0,0.00027397,2]
[358991957,1745611843771,-500.0,0.00027397,2]
[358991958,1745611843781,-500.0,0.00027397,2]
[358991959,1745611843791,-500.0,0.00027397,2]
[358991960,1745611843801,-500.0,0.00027397,2]
[358991961,1745611843811,-894.26,0.00027397,2]
[358991962,1745611843822,-500.0,0.00027397,2]
[358991963,1745611843832,-500.0,0.00027397,2]
[358991964,1745611843842,-500.0,0.00027397,2]
[358991965,1745611843853,-500.0,0.00027397,2]
[358991966,1745611843863,-500.0,0.00027397,2]
[358991967,1745611843873,-523.19,0.00027397,2]
[358991968,1745611843883,-500.0,0.00027397,2]
[358991969,1745611843893,-500.0,0.00027397,2]
[358991970,1745611843903,-500.0,0.00027397,2]
[358991971,1745611843913,-500.0,0.00027397,2]
[358991972,1745611843922,-500.0,0.00027397,2]
[358991973,1745611843932,-500.0,0.00027397,2]
[358991974,1745611843942,-500.0,0.00027397,2]
[358991975,1745611843951,-500.0,0.00027397,2]
[358991976,1745611843961,-843.56,0.00027397,2]
[358991977,1745611843972,-250.60803594,0.00027397,2]
[358991978,1745611843982,-582.5,0.00027397,2]
[358991979,1745611843992,-500.0,0.00027397,2]
[358991980,1745611844002,-500.0,0.00027397,2]
[358991981,1745611844012,-500.0,0.00027397,2]
[358991982,1745611844022,-500.0,0.00027397,2]
[358991983,1745611844035,-500.0,0.00027397,2]
[358991984,1745611844050,-706.25,0.00027397,2]
[358991985,1745611844060,-500.0,0.00027397,2]
[358991986,1745611844076,-500.0,0.00027397,2]
[358991987,1745611844086,-500.0,0.00027397,2]
[358991988,1745611844097,-765.15,0.00027397,2]
[358991989,1745611844107,-500.0,0.00027397,2]
[358991990,1745611844118,-562.3,0.00027397,2]
[358991991,1745611844128,-917.87,0.00027397,2]
[358991992,1745611844139,-915.34,0.00027397,2]
[358991993,1745611844149,-500.0,0.00027397,2]
[358991994,1745611844161,-593.41,0.00027397,2]
[358991995,1745611844171,-500.0,0.00027397,2]
[358991996,1745611844181,-500.0,0.00027397,2]
[358991997,1745611844192,-883.15,0.00027397,2]
[358991998,1745611844206,-500.0,0.00027397,2]
[358991999,1745611844216,-500.0,0.00027397,2]
[358992000,1745611844226,-500.0,0.00027397,2]
[358992001,1745611844236,-500.0,0.00027397,2]
[358992002,1745611844246,-500.0,0.00027397,2]
[358992003,1745611844256,-611.78401887,0.00027397,2]
[358992004,1745611844266,-606.52,0.00027397,2]
[358992005,1745611844276,-500.0,0.00027397,2]
[358992006,1745611844287,-500.0,0.00027397,2]
[358992007,1745611844297,-500.0,0.00027397,2]
[358992008,1745611844307,-500.0,0.00027397,2]
[358992009,1745611844318,-500.0,0.00027397,2]
[358992010,1745611844329,-816.38,0.00027397,2]
[358992011,1745611844339,-500.0,0.00027397,2]
[358992012,1745611844349,-500.0,0.00027397,2]
[358992013,1745611844359,-548.56,0.00027397,2]
[358992014,1745611844369,-500.0,0.00027397,2]
[358992015,1745611844379,-500.0,0.00027397,2]
[358992016,1745611844390,-531.81819205,0.00027397,2]
[358992017,1745611844401,-500.0,0.00027397,2]
[358992018,1745611844411,-500.0,0.00027397,2]
[358992019,1745611844421,-500.0,0.00027397,2]
[358992020,1745611844432,-621.5,0.00027397,2]
[358992021,1745611844443,-543.86,0.00027397,2]
[358992022,1745611844453,-514.76,0.00027397,2]
[358992023,1745611844463,-500.0,0.00027397,2]
[358992024,1745611844473,-500.0,0.00027397,2]
[358992025,1745611844483,-500.0,0.00027397,2]
[358992026,1745611844493,-500.0,0.00027397,2]
[358992027,1745611844503,-500.0,0.00027397,2]
[358992028,1745611844514,-500.0,0.00027397,2]
[358992029,1745611844524,-500.0,0.00027397,2]
[358992030,1745611844534,-658.47,0.00027397,2]
[358992031,1745611844544,-500.0,0.00027397,2]
[358992032,1745611844555,-500.0,0.00027397,2]
[358992033,1745611844566,-500.0,0.00027397,2]
[358992034,1745611844576,-500.0,0.00027397,2]
[358992035,1745611844586,-235.74284125,0.00027397,2]
[358992036,1745611844597,-500.0,0.00027397,2]
[358992037,1745611844607,-538.17234962,0.00027397,2]
[358992038,1745611844618,-561.31768461,0.00027397,2]
[358992039,1745611844628,-500.0,0.00027397,2]
[358992040,1745611844638,-500.0,0.00027397,2]
[358992041,1745611844648,-500.0,0.00027397,2]
[358992042,1745611844658,-500.0,0.00027397,2]
[358992043,1745611844668,-620.3,0.00027397,2]
[358992044,1745611844678,-254.41639874,0.00027397,2]
[358992045,1745611844688,-500.0,0.00027397,2]
[358992046,1745611844699,-500.0,0.00027397,2]
[358992047,1745611844709,-500.0,0.00027397,2]
[358992048,1745611844719,-500.0,0.00027397,2]
[358992049,1745611844729,-572.38732694,0.00027397,2]
[358992050,1745611844739,-500.0,0.00027397,2]
[358992051,1745611844750,-701.99,0.00027397,2]
[358992052,1745611844760,-513.040522,0.00027397,2]
[358992053,1745611844770,-500.0,0.00027397,2]
[358992054,1745611844780,-500.0,0.00027397,2]
[358992055,1745611844790,-500.0,0.00027397,2]
[358992056,1745611844803,-500.0,0.00027397,2]
[358992057,1745611844813,-500.0,0.00027397,2]
[358992058,1745611844823,-500.0,0.00027397,2]
[358992059,1745611844834,-500.0,0.00027397,2]
[358992060,1745611844844,-500.0,0.00027397,2]
[358992061,1745611844854,-500.0,0.00027397,2]
[358992062,1745611844865,-500.0,0.00027397,2]
[358992063,1745611844875,-500.0,0.00027397,2]
[358992064,1745611844888,-500.0,0.00027397,2]
[358992065,1745611844898,-549.94980141,0.00027397,2]
[358992066,1745611844908,-500.0,0.00027397,2]
[358992067,1745611844919,-500.0,0.00027397,2]
[358992068,1745611844930,-500.0,0.00027397,2]
[358992069,1745611844941,-500.0,0.00027397,2]
[358992070,1745611844951,-582.96,0.00027397,2]
[358992071,1745611844962,-1177.28,0.00027397,2]
[358992072,1745611844973,-500.0,0.00027397,2]
[358992073,1745611844984,-552.09718626,0.00027397,2]
[358992074,1745611844994,-500.0,0.00027397,2]
[358992075,1745611845004,-174.55732757,0.00027397,2]
[358992076,1745611845015,-500.0,0.00027397,2]
[358992077,1745611845025,-500.0,0.00027397,2]
[358992078,1745611845036,-500.0,0.00027397,2]
[358992079,1745611845046,-500.0,0.00027397,2]
[358992080,1745611845057,-2416.55,0.00027397,2]
[358992081,1745611845068,-500.0,0.00027397,2]
[358992082,1745611845081,-905.88,0.00027397,2]
[358992083,1745611845091,-878.12,0.00027397,2]
[358992084,1745611845102,-500.0,0.00027397,2]
[358992085,1745611845112,-500.0,0.00027397,2]
[358992086,1745611845123,-504.56,0.00027397,2]
[358992087,1745611845135,-500.0,0.00027397,2]
[358992088,1745611845146,-565.2,0.00027397,2]
[358992089,1745611845156,-500.0,0.00027397,2]
[358992090,1745611845166,-500.0,0.00027397,2]
[358992091,1745611845177,-813.87,0.00027397,2]
[358992092,1745611845187,-702.84,0.00027397,2]
[358992093,1745611845199,-500.0,0.00027397,2]
[358992094,1745611845210,-500.0,0.00027397,2]
[358992095,1745611845220,-500.0,0.00027397,2]
[358992096,1745611845231,-500.0,0.00027397,2]
[358992097,1745611845241,-500.0,0.00027397,2]
[358992098,1745611845251,-500.0,0.00027397,2]
[358992099,1745611845261,-697.71,0.00027397,2]
[358992100,1745611845272,-657.78,0.00027397,2]
[358992101,1745611845282,-694.06,0.00027397,2]
[358992102,1745611845292,-500.0,0.00027397,2]
[358992103,1745611845302,-905.04,0.00027397,2]
[358992104,1745611845315,-616.99997512,0.00027397,2]
[358992105,1745611845325,-500.0,0.00027397,2]
[358992106,1745611845335,-384.56367088,0.00027397,2]
[358992107,1745611845345,-500.0,0.00027397,2]
[358992108,1745611845356,-549.25,0.00027397,2]
[358992109,1745611845366,-500.0,0.00027397,2]
[358992110,1745611845376,-500.0,0.00027397,2]
[358992111,1745611845386,-500.0,0.00027397,2]
[358992112,1745611845396,-698.31,0.00027397,2]
[358992113,1745611845407,-500.0,0.00027397,2]
[358992114,1745611845417,-500.0,0.00027397,2]
[358992115,1745611845427,-500.0,0.00027397,2]
[358992116,1745611845437,-500.0,0.00027397,2]
[358992117,1745611845448,-500.0,0.00027397,2]
[358992118,1745611845459,-500.0,0.00027397,2]
[358992119,1745611845470,-500.0,0.00027397,2]
[358992120,1745611845480,-500.0,0.00027397,2]
[358992121,1745611845491,-500.0,0.00027397,2]
[358992122,1745611845502,-500.0,0.00027397,2]
[358992123,1745611845513,-500.0,0.00027397,2]
[358992124,1745611845523,-500.0,0.00027397,2]
[358992125,1745611845533,-500.0,0.00027397,2]
[358992126,1745611845543,-500.0,0.00027397,2]
[358992127,1745611845554,-500.0,0.00027397,2]
[358992128,1745611845564,-500.0,0.00027397,2]
[358992129,1745611845574,-526.93,0.00027397,2]
[358992130,1745611845584,-519.98,0.00027397,2]
[358992131,1745611845595,-500.0,0.00027397,2]
[358992132,1745611845604,-692.97,0.00027397,2]
[358992133,1745611845615,-500.0,0.00027397,2]
[358992134,1745611845625,-518.69340176,0.00027397,2]
[358992135,1745611845635,-500.0,0.00027397,2]
[358992136,1745611845645,-500.0,0.00027397,2]
[358992137,1745611845655,-626.08831798,0.00027397,2]
[358992138,1745611845665,-2144.94,0.00027397,2]
[358992139,1745611845676,-572.46,0.00027397,2]
[358992140,1745611845687,-500.0,0.00027397,2]
[358992141,1745611845698,-546.8,0.00027397,2]
[358992142,1745611845709,-690.82,0.00027397,2]
[358992143,1745611845720,-500.0,0.00027397,2]
[358992144,1745611845730,-500.0,0.00027397,2]
[358992145,1745611845740,-500.0,0.00027397,2]
[358992146,1745611845750,-500.0,0.00027397,2]
[358992147,1745611845760,-868.79,0.00027397,2]
[358992148,1745611845771,-397.52823786,0.00027397,2]
[358992149,1745611845781,-846.69,0.00027397,2]
[358992150,1745611845791,-311.41,0.00027397,2]
[358992151,1745611845801,-1016.87,0.00027397,2]
[358992152,1745611845811,-680.86,0.00027397,2]
[358992153,1745611845822,-500.0,0.00027397,2]
[358992154,1745611845831,-500.0,0.00027397,2]
[358992155,1745611845841,-500.0,0.00027397,2]
[358992156,1745611845852,-1108.22,0.00027397,2]
[358992157,1745611845861,-500.0,0.00027397,2]
[358992158,1745611845871,-702.88,0.00027397,2]
[358992159,1745611845881,-557.44,0.00027397,2]
[358992160,1745611845892,-500.0,0.00027397,2]
[358992162,1745611845903,-1672.6,0.00027397,2]
[358992163,1745611845912,-500.0,0.00027397,2]
[358992164,1745611845922,-500.0,0.00027397,2]
[358992165,1745611845932,-626.7,0.00027397,2]
[358992166,1745611845944,-500.0,0.00027397,2]
[358992167,1745611845955,-500.0,0.00027397,2]
[358992168,1745611845966,-500.0,0.00027397,2]
[358992169,1745611845976,-500.0,0.00027397,2]
[358992170,1745611845986,-500.0,0.00027397,2]
[358992171,1745611845996,-500.0,0.00027397,2]
[358992172,1745611846006,-500.0,0.00027397,2]
[358992173,1745611846325,-500.0,0.00027397,2]
[358992174,1745611846361,-636.21,0.00027397,2]
[358992175,1745611846371,-2153.93,0.00027397,2]
[358992177,1745611846381,-500.0,0.00027397,2]
[358992180,1745611846392,-500.0,0.00027397,2]
[358992181,1745611846401,-534.25704096,0.00027397,2]
[358992184,1745611846412,-500.0,0.00027397,2]
[358992186,1745611846422,-500.0,0.00027397,2]
[358992188,1745611846432,-500.0,0.00027397,2]
[358992190,1745611846442,-500.0,0.00027397,2]
[358992191,1745611846452,-500.0,0.00027397,2]
[358992193,1745611846461,-500.0,0.00027397,2]
[358992195,1745611846471,-500.0,0.00027397,2]
[358992197,1745611846481,-500.0,0.00027397,2]
[358992200,1745611846491,-991.9,0.00027397,2]
[358992202,1745611846500,-500.0,0.00027397,2]
[358992204,1745611846510,-500.0,0.00027397,2]
[358992206,1745611846519,-500.0,0.00027397,2]
[358992208,1745611846528,-500.0,0.00027397,2]
[358992210,1745611846538,-504.61,0.00027397,2]
[358992212,1745611846548,-500.0,0.00027397,2]
[358992214,1745611846556,-500.0,0.00027397,2]
[358992216,1745611846566,-844.44,0.00027397,2]
[358992218,1745611846576,-500.0,0.00027397,2]
[358992220,1745611846585,-500.0,0.00027397,2]
[358992222,1745611846595,-500.0,0.00027397,2]
[358992224,1745611846605,-1005.3,0.00027397,2]
[358992226,1745611846614,-500.0,0.00027397,2]
[358992228,1745611846624,-581.5145417,0.00027397,2]
[358992230,1745611846634,-500.0,0.00027397,2]
[358992232,1745611846643,-500.0,0.00027397,2]
[358992234,1745611846653,-500.0,0.00027397,2]
[358992236,1745611846663,-500.0,0.00027397,2]